fUSD/lending_fUSD_20240718
["ID","MTS","AMOUNT","RATE_DAILY","PERIOD"]
[332527478,1721288052178,-500.0,0.00024931,2]
[332527479,1721288052187,-838.21,0.00024931,2]
[332527480,1721288052197,-500.0,0.00024931,2]
[332527481,1721288052207,-524.51186453,0.00024931,2]
[332527482,1721288052219,-832.49,0.00024931,2]
[332527483,1721288052228,-500.0,0.00024931,2]
[332527484,1721288052238,-635.85,0.00024931,2]
[332527485,1721288052247,-500.0,0.00024931,2]
[332527486,1721288052257,-500.0,0.00024931,2]
[332527487,1721288052267,-1002.59,0.00024931,2]
[332527488,1721288052276,-500.0,0.00024931,2]
[332527489,1721288052285,-500.0,0.00024931,2]
[332527490,1721288052295,-500.0,0.00024931,2]
[332527491,1721288052305,-509.61669147,0.00024931,2]
[332527492,1721288052315,-1264.99,0.00024931,2]
[332527493,1721288052324,-558.12,0.00024931,2]
[332527494,1721288052335,-667.65,0.00024931,2]
[332527495,1721288052345,-828.72,0.00024931,2]
[332527496,1721288052355,-825.13,0.00024931,2]
[332527497,1721288052364,-935.3,0.00024931,2]
[332527498,1721288052374,-500.0,0.00024931,2]
[332527499,1721288052384,-500.0,0.00024931,2]
[332527500,1721288052393,-500.0,0.00024931,2]
[332527501,1721288052402,-572.09,0.00024931,2]
[332527502,1721288052412,-801.73,0.00024931,2]
[332527503,1721288052421,-829.06,0.00024931,2]
[332527504,1721288052430,-500.0,0.00024931,2]
[332527505,1721288052440,-500.0,0.00024931,2]
[332527506,1721288052450,-500.0,0.00024931,2]
[332527507,1721288052460,-533.21,0.00024931,2]
[332527508,1721288052472,-1500.37,0.00024931,2]
[332527509,1721288052481,-993.33,0.00024931,2]
[332527510,1721288052491,-500.0,0.00024931,2]
[332527511,1721288052500,-526.42974258,0.00024931,2]
[332527512,1721288052510,-500.0,0.00024931,2]
[332527513,1721288052520,-614.68,0.00024931,2]
[332527514,1721288052531,-839.63,0.00024931,2]
[332527515,1721288052542,-1099.16,0.00024931,2]
[332527516,1721288052551,-2190.92,0.00024931,2]
[332527517,1721288052561,-519.35289795,0.00024931,2]
[332527518,1721288052572,-769.89,0.00024931,2]
[332527519,1721288052582,-1387.79,0.00024931,2]
[332527520,1721288052592,-860.39,0.00024931,2]
[332527521,1721288052601,-916.75,0.00024931,2]
[332527522,1721288052611,-500.0,0.00024931,2]
[332527523,1721288052621,-500.0,0.00024931,2]
[332527524,1721288052631,-621.09,0.00024931,2]
[332527525,1721288052642,-500.0,0.00024931,2]
[332527526,1721288052654,-2607.0,0.00024931,2]
[332527527,1721288052663,-500.0,0.00024931,2]
[332527528,1721288052672,-500.0,0.00024931,2]
[332527529,1721288052682,-934.95,0.00024931,2]
[332527530,1721288052691,-500.0,0.00024931,2]
[332527531,1721288052704,-634.32,0.00024931,2]
[332527532,1721288052714,-1185.83,0.00024931,2]
[332527533,1721288052725,-714.68,0.00024931,2]
[332527534,1721288052736,-500.0,0.00024931,2]
[332527535,1721288052745,-500.0,0.00024931,2]
[332527536,1721288052755,-706.1,0.00024931,2]
[332527537,1721288052765,-992.23,0.00024931,2]
[332527538,1721288052775,-719.06,0.00024931,2]
[332527539,1721288052784,-500.0,0.00024931,2]
[332527540,1721288052794,-500.0,0.00024931,2]
[332527541,1721288052803,-879.71,0.00024931,2]
[332527542,1721288052814,-962.74,0.00024931,2]
[332527543,1721288052823,-4194.17,0.00024931,2]
[332527544,1721288052834,-500.0,0.00024931,2]
[332527545,1721288052844,-500.0,0.00024931,2]
[332527546,1721288052854,-500.0,0.00024931,2]
[332527547,1721288052863,-500.0,0.00024931,2]
[332527548,1721288052874,-500.0,0.00024931,2]
[332527549,1721288052884,-796.16,0.00024931,2]
[332527550,1721288052894,-845.59,0.00024931,2]
[332527551,1721288052904,-1343.67,0.00024931,2]
[332527552,1721288052913,-500.0,0.00024931,2]
[332527553,1721288052923,-607.98,0.00024931,2]
[332527554,1721288052933,-500.0,0.00024931,2]
[332527555,1721288052943,-884.87,0.00024931,2]
[332527556,1721288052953,-500.0,0.00024931,2]
[332527557,1721288052963,-502.61306221,0.00024931,2]
[332527558,1721288052975,-500.0,0.00024931,2]
[332527559,1721288052985,-563.78,0.00024931,2]
[332527560,1721288052995,-500.0,0.00024931,2]
[332527561,1721288053005,-664.21,0.00024931,2]
[332527562,1721288053014,-619.48,0.00024931,2]
[332527563,1721288053023,-500.0,0.00024931,2]
[332527564,1721288053032,-1023.41,0.00024931,2]
[332527565,1721288053042,-4286.57,0.00024931,2]
[332527566,1721288053051,-759.2,0.00024931,2]
[332527567,1721288053061,-500.0,0.00024931,2]
[332527568,1721288053070,-500.0,0.00024931,2]
[332527569,1721288053079,-1303.0,0.00024931,2]
[332527570,1721288053089,-664.93,0.00024931,2]
[332527571,1721288053099,-799.99,0.00024931,2]
[332527572,1721288053109,-779.15,0.00024931,2]
[332527573,1721288053118,-500.0,0.00024931,2]
[332527574,1721288053128,-840.9,0.00024931,2]
[332527575,1721288053138,-705.02,0.00024931,2]
[332527576,1721288053147,-500.0,0.00024931,2]
[332527577,1721288053157,-699.13,0.00024931,2]
[332527578,1721288053167,-500.0,0.00024931,2]
[332527579,1721288053177,-330.21,0.00024931,2]
[332527580,1721288053186,-500.0,0.00024931,2]
[332527581,1721288053195,-500.0,0.00024931,2]
[332527582,1721288053204,-712.43,0.00024931,2]
[332527583,1721288053214,-615.07,0.00024931,2]
[332527584,1721288053227,-500.0,0.00024931,2]
[332527585,1721288053236,-640.55,0.00024931,2]
[332527586,1721288053245,-500.0,0.00024931,2]
[332527587,1721288053255,-842.93,0.00024931,2]
[332527588,1721288053264,-1213.95,0.00024931,2]
[332527589,1721288053276,-500.0,0.00024931,2]
[332527590,1721288053285,-500.0,0.00024931,2]
[332527591,1721288053295,-515.65,0.00024931,2]
[332527592,1721288053305,-500.0,0.00024931,2]
[332527593,1721288053314,-964.94,0.00024931,2]
[332527594,1721288053323,-592.68,0.00024931,2]
[332527595,1721288053333,-6375.98,0.00024931,2]
[332527596,1721288053342,-1083.93,0.00024931,2]
[332527597,1721288053351,-1379.21,0.00024931,2]
[332527598,1721288053361,-1037.41,0.00024931,2]
[332527599,1721288053370,-500.0,0.00024931,2]
[332527600,1721288053379,-503.94849413,0.00024931,2]
[332527601,1721288053388,-1777.51,0.00024931,2]
[332527602,1721288053398,-559.08,0.00024931,2]
[332527603,1721288053408,-500.0,0.00024931,2]
[332527604,1721288053417,-500.0,0.00024931,2]
[332527605,1721288053428,-1444.47,0.00024931,2]
[332527606,1721288053437,-1147.47,0.00024931,2]
[332527607,1721288053447,-500.0,0.00024931,2]
[332527608,1721288053456,-815.97,0.00024931,2]
[332527609,1721288053470,-1394.22,0.00024931,2]
[332527610,1721288053480,-500.0,0.00024931,2]
[332527611,1721288053489,-1149.47,0.00024931,2]
[332527612,1721288053498,-500.0,0.00024931,2]
[332527613,1721288053508,-500.0,0.00024931,2]
[332527614,1721288053517,-588.95,0.00024931,2]
[332527615,1721288053526,-7884.99,0.00024931,2]
[332527616,1721288053536,-644.67576928,0.00024931,2]
[332527617,1721288053546,-1142.52,0.00024931,2]
[332527618,1721288053555,-2350.96,0.00024931,2]
[332527619,1721288053565,-500.0,0.00024931,2]
[332527620,1721288053575,-500.0,0.00024931,2]
[332527621,1721288053583,-751.24,0.00024931,2]
[332527622,1721288053593,-817.71,0.00024931,2]
[332527623,1721288053602,-500.0,0.00024931,2]
[332527624,1721288053612,-518.01,0.00024931,2]
[332527625,1721288053622,-1047.43,0.00024931,2]
[332527626,1721288053632,-9262.82,0.00024931,2]
[332527627,1721288053642,-576.17,0.00024931,2]
[332527628,1721288053654,-512.92177048,0.00024931,2]
[332527629,1721288053668,-500.0,0.00024931,2]
[332527630,1721288053678,-567.84,0.00024931,2]
[332527631,1721288053688,-500.0,0.00024931,2]
[332527632,1721288053699,-943.1,0.00024931,2]
[332527633,1721288053710,-714.81,0.00024931,2]
[332527634,1721288053722,-559.22,0.00024931,2]
[332527635,1721288053732,-671.4,0.00024931,2]
[332527636,1721288053741,-1700.34,0.00024931,2]
[332527637,1721288053752,-595.86,0.00024931,2]
[332527638,1721288053764,-500.0,0.00024931,2]
[332527639,1721288053774,-500.0,0.00024931,2]
[332527640,1721288053784,-897.02,0.00024931,2]
[332527641,1721288053794,-500.0,0.00024931,2]
[332527642,1721288053805,-709.03,0.00024931,2]
[332527643,1721288053818,-763.5,0.00024931,2]
[332527644,1721288053829,-812.96,0.00024931,2]
[332527645,1721288053838,-915.85,0.00024931,2]
[332527646,1721288053848,-500.0,0.00024931,2]
[332527647,1721288053858,-500.0,0.00024931,2]
[332527648,1721288053868,-919.85,0.00024931,2]
[332527649,1721288053878,-1583.56,0.00024931,2]
[332527650,1721288053887,-634.02,0.00024931,2]
[332527651,1721288053897,-1450.66,0.00024931,2]
[332527652,1721288053907,-500.0,0.00024931,2]
[332527653,1721288053916,-708.78,0.00024931,2]
[332527654,1721288053925,-948.76,0.00024931,2]
[332527655,1721288053934,-500.0,0.00024931,2]
[332527656,1721288053944,-1051.57,0.00024931,2]
[332527657,1721288053954,-2003.88,0.00024931,2]
[332527658,1721288053963,-601.06,0.00024931,2]
[332527659,1721288053974,-796.81,0.00024931,2]
[332527660,1721288053983,-500.0,0.00024931,2]
[332527661,1721288053992,-515.65,0.00024931,2]
[332527662,1721288054001,-1013.83,0.00024931,2]
[332527663,1721288054011,-544.27,0.00024931,2]
[332527664,1721288054020,-503.35,0.00024931,2]
[332527665,1721288054030,-1299.19,0.00024931,2]
[332527666,1721288054039,-1547.31,0.00024931,2]
[332527667,1721288054048,-500.0,0.00024931,2]
[332527668,1721288054058,-500.0,0.00024931,2]
[332527669,1721288054067,-517.08420381,0.00024931,2]
[332527670,1721288054077,-612.66,0.00024931,2]
[332527671,1721288054086,-957.7,0.00024931,2]
[332527672,1721288054095,-999.04,0.00024931,2]
[332527673,1721288054105,-677.55,0.00024931,2]
[332527674,1721288054114,-500.0,0.00024931,2]
[332527675,1721288054123,-549.83,0.00024931,2]
[332527676,1721288054132,-798.47,0.00024931,2]
[332527677,1721288054143,-500.0,0.00024931,2]
[332527678,1721288054152,-695.01,0.00024931,2]
[332527679,1721288054161,-501.14138813,0.00024931,2]
[332527680,1721288054172,-326.98,0.00024931,2]
[332527681,1721288054182,-518.09,0.00024931,2]
[332527682,1721288054191,-813.28,0.00024931,2]
[332527683,1721288054201,-1656.81,0.00024931,2]
[332527684,1721288054210,-945.22,0.00024931,2]
[332527685,1721288054222,-947.17,0.00024931,2]
[332527686,1721288054231,-539.79,0.00024931,2]
[332527687,1721288054240,-706.37,0.00024931,2]
[332527688,1721288054250,-1135.75,0.00024931,2]
[332527689,1721288054259,-673.53,0.00024931,2]
[332527690,1721288054268,-3128.96,0.00024931,2]
[332527691,1721288054278,-503.24170532,0.00024931,2]
[332527692,1721288054288,-557.31,0.00024931,2]
[332527693,1721288054298,-669.1,0.00024931,2]
[332527694,1721288054307,-3223.32,0.00024931,2]
[332527695,1721288054317,-842.49,0.00024931,2]
[332527696,1721288054326,-509.50154241,0.00024931,2]
[332527697,1721288054336,-542.57,0.00024931,2]
[332527698,1721288054345,-836.84,0.00024931,2]
[332527699,1721288054465,-884.02,0.00024931,2]
[332527700,1721288054477,-1416.46,0.00024931,2]
[332527701,1721288054487,-525.77,0.00024931,2]
[332527702,1721288054497,-500.0,0.00024931,2]
[332527703,1721288054507,-504.97633879,0.00024931,2]
[332527704,1721288054516,-808.77,0.00024931,2]
[332527705,1721288054526,-500.0,0.00024931,2]
[332527706,1721288054536,-888.04,0.00024931,2]
[332527707,1721288054545,-813.18,0.00024931,2]
[332527708,1721288054555,-2204.96,0.00024931,2]
[332527709,1721288054564,-500.0,0.00024931,2]
[332527710,1721288054574,-617.34,0.00024931,2]
[332527711,1721288054584,-503.15,0.00024931,2]
[332527712,1721288054595,-500.0,0.00024931,2]
[332527713,1721288054604,-516.87599181,0.00024931,2]
[332527714,1721288054614,-550.97,0.00024931,2]
[332527715,1721288054623,-507.13917433,0.00024931,2]
[332527716,1721288054633,-500.0,0.00024931,2]
[332527717,1721288054643,-773.79,0.00024931,2]
[332527718,1721288054653,-1258.11,0.00024931,2]
[332527719,1721288054667,-556.49,0.00024931,2]
[332527720,1721288054677,-1541.61,0.00024931,2]
[332527721,1721288054687,-500.0,0.00024931,2]
[332527722,1721288054696,-923.36,0.00024931,2]
[332527723,1721288054706,-1497.76,0.00024931,2]
[332527724,1721288054717,-500.0,0.00024931,2]
[332527725,1721288054728,-505.10259953,0.00024931,2]
[332527726,1721288054739,-698.16,0.00024931,2]
[332527727,1721288054749,-1777.63,0.00024931,2]
[332527728,1721288054759,-1751.66,0.00024931,2]
[332527729,1721288054769,-500.0,0.00024931,2]
[332527730,1721288054779,-500.0,0.00024931,2]
[332527731,1721288054789,-748.62,0.00024931,2]
[332527732,1721288054798,-702.74,0.00024931,2]
[332527733,1721288054808,-1440.65,0.00024931,2]
[332527734,1721288054818,-500.0,0.00024931,2]
[332527735,1721288054828,-500.0,0.00024931,2]
[332527736,1721288054837,-600.34,0.00024931,2]
[332527737,1721288054847,-1459.37,0.00024931,2]
[332527738,1721288054856,-505.35411867,0.00024931,2]
[332527739,1721288054866,-834.65,0.00024931,2]
[332527740,1721288054876,-574.9,0.00024931,2]
[332527741,1721288054886,-967.34,0.00024931,2]
[332527742,1721288054896,-160.75562881,0.00024931,2]
[332527743,1721288054906,-945.46,0.00024931,2]
[332527744,1721288054916,-624.43433539,0.00024931,2]
[332527745,1721288054926,-6789.46,0.00024931,2]
[332527746,1721288054936,-497.12231988,0.00024931,2]
[332527747,1721288054946,-1351.16,0.00024931,2]
[332527748,1721288054957,-1649.03,0.00024931,2]
[332527749,1721288054967,-846.83,0.00024931,2]
[332527750,1721288054979,-3838.48,0.00024931,2]
[332527751,1721288054989,-727.83,0.00024931,2]
[332527752,1721288054999,-500.0,0.00024931,2]
[332527753,1721288055008,-1099.8,0.00024931,2]
[332527754,1721288055018,-592.88,0.00024931,2]
[332527755,1721288055028,-505.43445094,0.00024931,2]
[332527756,1721288055037,-758.27,0.00024931,2]
[332527757,1721288055047,-1314.69,0.00024931,2]
[332527758,1721288055056,-660.25,0.00024931,2]
[332527759,1721288055066,-1225.2,0.00024931,2]
[332527760,1721288055076,-690.8,0.00024931,2]
[332527761,1721288055086,-815.9,0.00024931,2]
[332527762,1721288055096,-500.0,0.00024931,2]
[332527763,1721288055106,-1445.6,0.00024931,2]
[332527764,1721288055116,-1211.24,0.00024931,2]
[332527765,1721288055125,-500.0,0.00024931,2]
[332527766,1721288055135,-764.9,0.00024931,2]
[332527767,1721288055145,-1017.79,0.00024931,2]
[332527768,1721288055154,-500.0,0.00024931,2]
[332527769,1721288055163,-819.77,0.00024931,2]
[332527770,1721288055173,-843.65,0.00024931,2]
[332527771,1721288055182,-508.09,0.00024931,2]
[332527772,1721288055192,-500.0,0.00024931,2]
[332527773,1721288055201,-4510.49,0.00024931,2]
[332527774,1721288055211,-1121.8,0.00024931,2]
[332527775,1721288055222,-502.9528592,0.00024931,2]
[332527776,1721288055231,-615.98,0.00024931,2]
[332527777,1721288055240,-548.62,0.00024931,2]
[332527778,1721288055250,-500.0,0.00024931,2]
[332527779,1721288055260,-732.51,0.00024931,2]
[332527780,1721288055269,-727.51,0.00024931,2]
[332527781,1721288055279,-500.0,0.00024931,2]
[332527782,1721288055288,-699.69,0.00024931,2]
[332527783,1721288055298,-500.0,0.00024931,2]
[332527784,1721288055307,-780.84,0.00024931,2]
[332527785,1721288055316,-985.19,0.00024931,2]
[332527786,1721288055326,-504.21674302,0.00024931,2]
[332527787,1721288055335,-2219.16,0.00024931,2]
[332527788,1721288055344,-661.47,0.00024931,2]
[332527789,1721288055353,-2008.64,0.00024931,2]
[332527790,1721288055363,-707.34,0.00024931,2]
[332527791,1721288055372,-776.84,0.00024931,2]
[332527792,1721288055382,-500.0,0.00024931,2]
[332527793,1721288055391,-2197.33,0.00024931,2]
[332527794,1721288055400,-500.0,0.00024931,2]
[332527795,1721288055409,-813.45,0.00024931,2]
[332527796,1721288055418,-6067.08,0.00024931,2]
[332527797,1721288055428,-1222.6,0.00024931,2]
[332527798,1721288055437,-685.95,0.00024931,2]
[332527799,1721288055446,-885.84,0.00024931,2]
[332527800,1721288055456,-500.0,0.00024931,2]
[332527801,1721288055466,-500.0,0.00024931,2]
[332527802,1721288055477,-589.04,0.00024931,2]
[332527803,1721288055487,-703.44,0.00024931,2]
[332527804,1721288055497,-919.77,0.00024931,2]
[332527805,1721288055506,-2956.08,0.00024931,2]
[332527806,1721288055516,-699.95,0.00024931,2]
[332527807,1721288055527,-500.0,0.00024931,2]
[332527808,1721288055537,-758.73,0.00024931,2]
[332527809,1721288055546,-500.0,0.00024931,2]
[332527810,1721288055556,-1023.99,0.00024931,2]
[332527811,1721288055566,-500.0,0.00024931,2]
[332527812,1721288055577,-893.45,0.00024931,2]
[332527813,1721288055586,-1159.85,0.00024931,2]
[332527814,1721288055597,-500.0,0.00024931,2]
[332527815,1721288055608,-799.42,0.00024931,2]
[332527816,1721288055618,-500.0,0.00024931,2]
[332527817,1721288055629,-500.0,0.00024931,2]
[332527818,1721288055640,-197.82356535,0.00024933,2]
[332527819,1721288055651,-1556.45,0.00024938,2]
[332527820,1721288055666,-166.66666666,0.00024939,2]
[332527821,1721288055676,-157.03911635,0.00024961,2]
[332527822,1721288055686,-371.32697632,0.00024969,2]
[332527823,1721288055697,-267.41464616,0.00024972,2]
[332527824,1721288055709,-200.0,0.00024974,2]
[332527825,1721288055720,-414.54398912,0.00024975,2]
[332527826,1721288055730,-1810.54,0.0002498,2]
[332527827,1721288055740,-943.30798427,0.0002498,4]
[332527828,1721288055750,-371.32697649,0.00024982,2]
[332527829,1721288055761,-800.0,0.00024994,2]
[332527830,1721288055770,-196.92,0.00024995,5]
[332527831,1721288055781,-11910859.66186901,0.00025,2]
[332527832,1721288055790,-5000.0,0.00025,7]
[332527833,1721288055800,-433.17944014,0.00025,2]
[332527834,1721288055809,-1789.77018404,0.00025,2]
[332527835,1721288055818,-171.64436409,0.00025,2]
[332527836,1721288055828,-15931.29830868,0.00025,4]
[332527837,1721288055838,-884.26391562,0.00025,4]
[332527838,1721288055847,-155.0,0.00025,2]
[332527839,1721288055857,-4286.62143139,0.00025,15]
[332527840,1721288055866,-1280.64544022,0.00025,2]
[332527841,1721288055876,-1800.0,0.00025,26]
[332527842,1721288055886,-27247.87136751,0.00025,7]
[332527843,1721288055895,-258.0,0.00025,2]
[332527844,1721288055905,-3247.80503031,0.00025,10]
[332527845,1721288055914,-517.0,0.00025,2]
[332527846,1721288055924,-3821.30235998,0.00025,2]
[332527847,1721288055933,-1319216.12008008,0.00025,2]
[332527848,1721288055943,-10000.0,0.00025,4]
[332527849,1721288055952,-258.0,0.00025,2]
[332527850,1721288055961,-2585.0,0.00025,2]
[332527851,1721288055972,-605.2809317,0.00025,30]
[332527852,1721288055981,-500.0,0.00025,7]
[332527853,1721288055991,-1004.0,0.00025,22]
[332527854,1721288056000,-338.0,0.00025,2]
[332527855,1721288056009,-338.0,0.00025,2]
[332527856,1721288056019,-338.0,0.00025,2]
[332527857,1721288056028,-338.0,0.00025,2]
[332527858,1721288056037,-338.0,0.00025,2]
[332527859,1721288056047,-338.0,0.00025,2]
[332527860,1721288056056,-338.0,0.00025,2]
[332527861,1721288056065,-338.0,0.00025,2]
[332527862,1721288056074,-338.0,0.00025,2]
[332527863,1721288056083,-338.0,0.00025,2]
[332527864,1721288056093,-338.0,0.00025,2]
[332527865,1721288056102,-338.0,0.00025,2]
[332527866,1721288056111,-252.0,0.00025,2]
[332527867,1721288056120,-1000.0,0.00025,3]
[332527868,1721288056131,-273.41121728,0.00025,2]
[332527869,1721288056141,-200.0,0.00025,2]
[332527870,1721288056151,-200.0,0.00025,2]
[332527871,1721288056160,-200.0,0.00025,2]
[332527872,1721288056169,-200.0,0.00025,2]
[332527873,1721288056179,-200.0,0.00025,2]
[332527874,1721288056189,-200.0,0.00025,2]
[332527875,1721288056198,-200.0,0.00025,2]
[332527876,1721288056207,-200.0,0.00025,2]
[332527877,1721288056217,-200.0,0.00025,2]
[332527878,1721288056227,-383.3,0.00025,2]
[332527879,1721288056237,-2500.0,0.00025,2]
[332527880,1721288056247,-468.166704,0.00025,6]
[332527881,1721288056258,-500.0,0.00025,2]
[332527882,1721288056267,-500.0,0.00025,2]
[332527883,1721288056277,-500.0,0.00025,2]
[332527884,1721288056286,-500.0,0.00025,2]
[332527885,1721288056296,-500.0,0.00025,2]
[332527886,1721288056306,-500.0,0.00025,2]
[332527887,1721288056316,-1000.0,0.00025,2]
[332527888,1721288056325,-989.57546097,0.00025008,14]
[332527889,1721288056335,-159.01,0.00025049,2]
[332527890,1721288056344,-3198.62026438,0.000251,2]
[332527891,1721288056354,-200.0,0.000251,2]
[332527892,1721288056364,-338.0,0.0002513,2]
[332527893,1721288056374,-252.0,0.0002513,2]
[332527894,1721288056384,-954.82,0.0002519,7]
[332527895,1721288056393,-954.82,0.0002519,7]
[332527896,1721288056403,-2000.0,0.000252,2]
[332527897,1721288056413,-2000.0,0.000252,2]
[332527898,1721288056423,-2000.0,0.000252,2]
[332527899,1721288056434,-519.58727369,0.00025205,2]
[332527900,1721288056443,-1548.92,0.00025205,2]
[332527901,1721288056453,-384.99771472,0.00025205,2]
[332527902,1721288056463,-903.45,0.00025205,2]
[332527903,1721288056474,-500.0,0.00025205,2]
[332527904,1721288056484,-873.73,0.00025205,2]
[332527905,1721288056495,-500.0,0.00025205,2]
[332527906,1721288056506,-1146.78,0.00025205,2]
[332527907,1721288056516,-500.0,0.00025205,2]
[332527908,1721288056526,-500.0,0.00025205,2]
[332527909,1721288056535,-755.65,0.00025205,2]
[332527910,1721288056545,-500.0,0.00025205,2]
[332527911,1721288056554,-1117.53,0.00025205,2]
[332527912,1721288056564,-1014.34,0.00025205,2]
[332527913,1721288056574,-184.03216825,0.00025205,2]
[332527914,1721288056583,-500.0,0.00025205,2]
[332527915,1721288056593,-500.0,0.00025205,2]
[332527916,1721288056604,-500.0,0.00025205,2]
[332527917,1721288056614,-926.9,0.00025205,2]
[332527918,1721288056623,-500.0,0.00025205,2]
[332527919,1721288056974,-559.52,0.00025205,2]
[332527920,1721288056984,-1202.57,0.00025205,2]
[332527921,1721288056994,-500.0,0.00025205,2]
[332527922,1721288057004,-686.6,0.00025205,2]
[332527923,1721288057014,-698.02,0.00025205,2]
[332527924,1721288057024,-500.0,0.00025205,2]
[332527925,1721288057035,-500.0,0.00025205,2]
[332527926,1721288057045,-568.02,0.00025205,2]
[332527927,1721288057055,-564.08897323,0.00025205,2]
[332527928,1721288057066,-500.0,0.00025205,2]
[332527929,1721288057076,-500.0,0.00025205,2]
[332527930,1721288057086,-506.5,0.00025205,2]
[332527931,1721288057097,-579.89,0.00025205,2]
[332527932,1721288057107,-888.04,0.00025205,2]
[332527933,1721288057116,-877.77,0.00025205,2]
[332527934,1721288057126,-500.0,0.00025205,2]
[332527935,1721288057136,-500.0,0.00025205,2]
[332527936,1721288057146,-500.0,0.00025205,2]
[332527937,1721288057156,-689.95,0.00025205,2]
[332527938,1721288057166,-887.13,0.00025205,2]
[332527939,1721288057175,-512.75,0.00025205,2]
[332527940,1721288057185,-500.0,0.00025205,2]
[332527941,1721288057195,-918.48,0.00025205,2]
[332527942,1721288057205,-500.0,0.00025205,2]
[332527943,1721288057215,-500.0,0.00025205,2]
[332527944,1721288057226,-1130.16,0.00025205,2]
[332527945,1721288057236,-500.0,0.00025205,2]
[332527946,1721288057246,-500.0,0.00025205,2]
[332527947,1721288057256,-1018.39,0.00025205,2]
[332527948,1721288057266,-500.0,0.00025205,2]
[332527949,1721288057276,-500.0,0.00025205,2]
[332527950,1721288057286,-582.9,0.00025205,2]
[332527951,1721288057296,-500.0,0.00025205,2]
[332527952,1721288057306,-500.0,0.00025205,2]
[332527953,1721288057316,-629.0,0.00025205,2]
[332527954,1721288057326,-682.95,0.00025205,2]
[332527955,1721288057336,-1036.97,0.00025205,2]
[332527956,1721288057347,-688.35,0.00025205,2]
[332527957,1721288057356,-500.0,0.00025205,2]
[332527958,1721288057365,-851.26,0.00025205,2]
[332527959,1721288057375,-1046.3,0.00025205,2]
[332527960,1721288057384,-500.0,0.00025205,2]
[332527961,1721288057395,-988.22,0.00025205,2]
[332527962,1721288057406,-500.0,0.00025205,2]
[332527963,1721288057417,-500.0,0.00025205,2]
[332527964,1721288057427,-500.0,0.00025205,2]
[332527965,1721288057436,-864.94,0.00025205,2]
[332527966,1721288057447,-704.02,0.00025205,2]
[332527967,1721288057456,-500.0,0.00025205,2]
[332527968,1721288057466,-791.51,0.00025205,2]
[332527969,1721288057479,-637.96,0.00025205,2]
[332527970,1721288057489,-645.57,0.00025205,2]
[332527971,1721288057499,-500.0,0.00025205,2]
[332527972,1721288057511,-632.83,0.00025205,2]
[332527973,1721288057522,-654.28,0.00025205,2]
[332527974,1721288057531,-673.07,0.00025205,2]
[332527975,1721288057541,-616.18,0.00025205,2]
[332527976,1721288057551,-500.0,0.00025205,2]
[332527977,1721288057560,-530.94,0.00025205,2]